bitfinex/quotes_BTCUSD_20240701
["timestamp","ask_amount","ask_price","bid_price","bid_amount"]
[1719792703244,0.53421535,62698.0,62697.0,0.11292002]
[1719792703540,1.21091798,62698.0,62697.0,0.100924]
[1719792703722,1.38722751,62698.0,62697.0,0.100924]
[1719792703924,1.08667851,62698.0,62697.0,0.100924]
[1719792705417,1.46304472,62698.0,62697.0,0.100924]
[1719792705679,1.58244472,62698.0,62697.0,0.100924]
[1719792705818,1.60244472,62698.0,62697.0,0.100924]
[1719792706224,1.42613519,62698.0,62697.0,0.100924]
[1719792706423,1.59280811,62698.0,62697.0,0.100924]
[1719792706621,1.59880811,62698.0,62697.0,0.100924]
[1719792707375,1.58480811,62698.0,62697.0,0.100924]
[1719792707586,1.47073985,62698.0,62697.0,0.100924]
[1719792707967,0.24829795,62696.0,62695.0,0.009262]
[1719792708168,5.11855291,62696.0,62695.0,0.009262]
[1719792708515,5.11855291,62696.0,62687.0,0.1]
[1719792708516,0.27193795,62688.0,62687.0,0.1]
[1719792708811,2.80400391,62688.0,62687.0,0.1]
[1719792708955,2.52714091,62688.0,62687.0,0.1]
[1719792709154,2.47750285,62688.0,62687.0,0.1]
[1719792709477,2.35454524,62688.0,62687.0,0.1]
[1719792709698,2.19095724,62688.0,62687.0,0.1]
[1719792709907,0.49226831,62688.0,62687.0,0.1]
[1719792710109,0.65460729,62688.0,62687.0,0.1]
[1719792710315,0.66860729,62688.0,62687.0,0.1]
[1719792710792,0.81514524,62688.0,62687.0,0.1]
[1719792711211,2.61247924,62688.0,62687.0,0.1]
[1719792711416,2.17418124,62688.0,62687.0,0.1]
[1719792711617,2.11822924,62688.0,62687.0,0.1]
[1719792711844,2.02539824,62688.0,62687.0,0.1]
[1719792712060,2.03939824,62688.0,62687.0,0.1]
[1719792712247,2.20173195,62688.0,62687.0,0.1]
[1719792712455,0.82414524,62688.0,62687.0,0.1]
[1719792712655,0.80938398,62688.0,62687.0,0.1]
[1719792712854,2.46765998,62688.0,62687.0,0.1]
[1719792713062,2.64446098,62688.0,62687.0,0.1]
[1719792713617,2.63046098,62688.0,62687.0,0.1]
[1719792713827,2.64446098,62688.0,62687.0,0.1]
[1719792714032,2.63046098,62688.0,62687.0,0.1]
[1719792714442,2.64446098,62688.0,62687.0,0.1]
[1719792714888,2.65846098,62688.0,62687.0,0.1]
[1719792715094,2.58829623,62688.0,62687.0,0.1]
[1719792715270,2.56756523,62688.0,62687.0,0.1]
[1719792715474,2.57356523,62688.0,62687.0,0.1]
[1719792715673,2.44025818,62688.0,62687.0,0.1]
[1719792715883,2.62288611,62688.0,62687.0,0.1]
[1719792716072,2.45425818,62688.0,62687.0,0.1]
[1719792716311,2.63694508,62688.0,62687.0,0.1]
[1719792716502,2.62294508,62688.0,62687.0,0.1]
[1719792716703,2.60294508,62688.0,62687.0,0.1]
[1719792716859,2.61694508,62688.0,62687.0,0.1]
[1719792717059,2.60294508,62688.0,62687.0,0.1]
[1719792717294,2.62294508,62688.0,62687.0,0.1]
[1719792717495,2.63694508,62688.0,62687.0,0.1]
[1719792717914,2.60294508,62688.0,62687.0,0.1]
[1719792718110,2.61694508,62688.0,62687.0,0.1]
[1719792718510,2.73270508,62688.0,62687.0,0.1]
[1719792718967,2.72997647,62688.0,62687.0,0.1]
[1719792719165,2.8878952,62688.0,62687.0,0.1]
[1719792719365,2.9018952,62688.0,62687.0,0.1]
[1719792719767,2.8878952,62688.0,62687.0,0.1]
[1719792719965,2.9067203,62688.0,62687.0,0.09405]
[1719792720201,2.79069501,62688.0,62687.0,0.09405]
[1719792720582,2.99069501,62688.0,62687.0,0.09405]
[1719792720756,2.99069501,62688.0,62675.0,0.009251]
[1719792720757,0.69269795,62686.0,62675.0,0.009251]
[1719792720958,0.13253795,62678.0,62675.0,0.009251]
[1719792721164,2.52770316,62678.0,62675.0,0.009251]
[1719792721354,3.05364016,62678.0,62677.0,0.11219698]
[1719792721669,3.05364016,62678.0,62677.0,0.1]
[1719792721850,0.16434323,62678.0,62677.0,0.1]
[1719792722050,0.16434323,62678.0,62677.0,0.18130346]
[1719792722373,0.07834323,62678.0,62677.0,0.19350044]
[1719792722534,0.07834323,62678.0,62677.0,0.42076249]
[1719792722960,0.02772373,62678.0,62677.0,0.42076249]
[1719792723376,0.04172373,62678.0,62677.0,0.42076249]
[1719792725507,0.07945998,62698.0,62697.0,0.22305807]
[1719792725884,0.02187302,62698.0,62697.0,0.22305807]
[1719792726082,0.02187302,62698.0,62697.0,0.20305807]
[1719792726533,0.02387302,62698.0,62697.0,0.22305807]
[1719792726915,0.02587302,62698.0,62697.0,0.22305807]
[1719792727125,0.02387302,62698.0,62697.0,0.20305807]
[1719792727329,0.01184,62698.0,62697.0,0.20305807]
[1719792727754,0.031628,62698.0,62697.0,0.22305807]
[1719792727930,0.029628,62698.0,62697.0,0.20305807]
[1719792728341,0.037628,62698.0,62697.0,0.22305807]
[1719792728567,0.020628,62698.0,62697.0,0.22305807]
[1719792728947,0.022628,62698.0,62697.0,0.22624756]
[1719792729289,0.020628,62698.0,62697.0,0.22624756]
[1719792729786,0.021628,62698.0,62697.0,0.22624756]
[1719792730491,0.02103215,62698.0,62697.0,0.22624756]
[1719792730883,0.02103215,62698.0,62697.0,0.52112449]
[1719792731030,0.00184,62698.0,62697.0,0.58539705]
[1719792731654,0.00284,62698.0,62697.0,0.58539705]
[1719792732272,0.00184,62698.0,62697.0,0.58539705]
[1719792733369,0.00284,62698.0,62697.0,0.58539705]
[1719792735955,0.00084,62715.0,62714.0,0.19736205]
[1719792736158,0.0195915,62715.0,62714.0,0.67572205]
[1719792736359,0.00084,62715.0,62714.0,0.67572205]
[1719792736698,0.00084,62715.0,62714.0,0.68754735]
[1719792737085,0.01484,62715.0,62714.0,0.68754735]
[1719792737390,0.01584,62715.0,62714.0,0.68754735]
[1719792738751,0.00184,62715.0,62714.0,0.68754735]
[1719792739178,0.00184,62715.0,62714.0,0.68954735]
[1719792740560,0.00184,62715.0,62714.0,0.68946808]
[1719792743737,0.00184,62715.0,62714.0,0.66954735]
[1719792743890,0.00184,62715.0,62714.0,0.68946808]
[1719792744366,0.00184,62715.0,62714.0,0.66954735]
[1719792744522,0.00184,62715.0,62714.0,0.68946808]
[1719792745314,0.00184,62715.0,62714.0,0.55964735]
[1719792745704,0.10184,62715.0,62714.0,0.55964735]
[1719792746104,0.10084,62715.0,62714.0,0.55764735]
[1719792746313,0.10484,62715.0,62714.0,0.55764735]
[1719792746515,0.5809461,62715.0,62714.0,0.4911853]
[1719792746732,0.5573141,62715.0,62714.0,0.4911853]
[1719792746933,0.5373141,62715.0,62714.0,0.4911853]
[1719792747536,0.11988712,62715.0,62714.0,0.4911853]
[1719792747930,0.11588712,62715.0,62714.0,0.4911853]
[1719792748160,0.12488712,62715.0,62714.0,0.4911853]
[1719792748332,0.44001912,62715.0,62714.0,0.4911853]
[1719792748529,0.5895811,62715.0,62714.0,0.4911853]
[1719792748733,0.7283811,62715.0,62714.0,0.4911853]
[1719792748939,0.7143811,62715.0,62714.0,0.4911853]
[1719792749158,0.71333398,62715.0,62714.0,0.4911853]
[1719792749363,0.71333398,62715.0,62714.0,0.4901853]
[1719792749364,0.71045894,62715.0,62714.0,0.4901853]
[1719792749782,0.71545894,62715.0,62714.0,0.4901853]
[1719792749921,0.76373898,62715.0,62714.0,0.4901853]
[1719792750345,0.77073898,62715.0,62714.0,0.4901853]
[1719792750546,0.48238398,62715.0,62714.0,0.4901853]
[1719792750750,2.10210598,62715.0,62714.0,0.4901853]
[1719792750948,2.09510598,62715.0,62714.0,0.4901853]
[1719792751354,2.08110598,62715.0,62714.0,0.4901853]
[1719792751588,2.09010598,62715.0,62714.0,0.4901853]
[1719792751975,2.15488116,62715.0,62714.0,0.4901853]
[1719792752209,2.17788116,62715.0,62714.0,0.4901853]
[1719792752356,2.1926205,62715.0,62714.0,0.47836]
[1719792752556,2.29838151,62715.0,62714.0,0.47836]
[1719792752758,2.27138373,62715.0,62714.0,0.47836]
[1719792752973,0.063,62708.0,62698.0,0.06746205]
[1719792753174,0.13253795,62713.0,62698.0,0.06746205]
[1719792753175,0.1819,62699.0,62698.0,0.06746205]
[1719792753429,0.3420448,62699.0,62698.0,0.06746205]
[1719792754432,0.11157986,62699.0,62698.0,0.06746205]
[1719792754669,0.06119993,62699.0,62698.0,0.06746205]
[1719792754791,0.01157986,62699.0,62698.0,0.06746205]
[1719792755247,0.01157986,62699.0,62696.0,0.01992073]
[1719792755248,0.1,62704.0,62700.0,0.06746205]
[1719792755465,0.1,62704.0,62701.0,0.08130346]
[1719792755666,0.06211088,62703.0,62702.0,0.06746205]
[1719792755852,0.06210918,62703.0,62702.0,0.06746205]
[1719792756052,0.06178059,62703.0,62702.0,0.06746205]
[1719792756354,0.01258885,62703.0,62702.0,0.06746205]
[1719792756618,0.01258885,62703.0,62702.0,0.08738278]
[1719792757169,0.01858885,62703.0,62702.0,0.08738278]
[1719792758098,0.02558885,62703.0,62702.0,0.08738278]
[1719792758666,0.02494047,62703.0,62702.0,0.08738278]
[1719792758909,0.02494047,62703.0,62702.0,0.06746205]
[1719792759288,0.02494047,62703.0,62702.0,0.08738278]
[1719792759958,0.02494047,62703.0,62702.0,0.06746205]
[1719792760340,0.0737215,62703.0,62702.0,0.06746205]
[1719792760557,0.1535215,62703.0,62702.0,0.06746205]
[1719792760676,0.2535215,62703.0,62702.0,0.06746205]
[1719792761376,0.2535215,62703.0,62699.0,0.06746205]
[1719792761554,0.1607215,62702.0,62699.0,0.06746205]
[1719792761773,0.1,62702.0,62699.0,0.06746205]
[1719792761982,0.01225656,62701.0,62699.0,0.06746205]
[1719792762266,0.0632,62700.0,62699.0,0.06746205]
[1719792762494,0.07545656,62700.0,62699.0,0.06746205]
[1719792764064,0.07745656,62700.0,62699.0,0.06746205]
[1719792765044,0.0692,62700.0,62699.0,0.06746205]
[1719792765247,0.0815797,62700.0,62699.0,0.06746205]
[1719792765456,0.0692,62700.0,62699.0,0.06746205]
[1719792765656,0.08157973,62700.0,62699.0,0.06746205]
[1719792766479,0.08157973,62700.0,62699.0,0.06838605]
[1719792768273,0.01837973,62700.0,62699.0,0.06838605]
[1719792768665,0.01837973,62700.0,62699.0,0.08036198]
[1719792769110,0.01837973,62700.0,62699.0,0.10028271]
[1719792771144,0.01837973,62700.0,62699.0,0.24718271]
[1719792771574,0.01805624,62700.0,62699.0,0.24718271]
[1719792771750,0.01805615,62700.0,62699.0,0.24718271]
[1719792772353,0.01605615,62700.0,62699.0,0.24718271]
[1719792772498,0.01605615,62700.0,62699.0,0.25018271]
[1719792772889,0.01605615,62700.0,62699.0,0.24718271]
[1719792773096,0.01305615,62700.0,62699.0,0.25018271]
[1719792773300,0.01305615,62700.0,62699.0,0.25118271]
[1719792773961,0.01305615,62700.0,62699.0,0.25018271]
[1719792774110,0.01305615,62700.0,62699.0,0.25118271]
[1719792774751,0.001,62700.0,62699.0,0.25118271]
[1719792775196,0.01373862,62700.0,62699.0,0.25118271]
[1719792775517,0.06340325,62700.0,62699.0,0.25118271]
[1719792776568,0.06308933,62700.0,62699.0,0.25118271]
[1719792777597,0.06308933,62700.0,62699.0,0.23920678]
[1719792777968,0.06297611,62700.0,62699.0,0.25118271]
[1719792780834,0.01354318,62700.0,62699.0,0.25118271]
[1719792781151,0.06303013,62700.0,62699.0,0.25118271]
[1719792782098,0.06303013,62700.0,62699.0,0.45118271]
[1719792782286,0.01354318,62700.0,62699.0,0.45118271]
[1719792783161,0.01354318,62700.0,62699.0,0.25118271]
[1719792783357,0.001,62700.0,62699.0,0.25118271]
[1719792783717,0.01085609,62700.0,62699.0,0.25118271]
[1719792784549,0.01085609,62700.0,62699.0,0.45437174]
[1719792785414,0.01085609,62700.0,62699.0,0.61671072]
[1719792786007,0.001,62700.0,62699.0,0.81671072]
[1719792786217,0.001,62700.0,62699.0,0.89801418]
[1719792786638,0.001,62700.0,62699.0,0.89701418]
[1719792787049,0.00084,62715.0,62714.0,0.01992073]
[1719792787255,0.00084,62715.0,62714.0,0.08738278]
[1719792787371,0.00084,62715.0,62714.0,0.09920808]
[1719792789633,0.00084,62715.0,62714.0,0.10220808]
[1719792790064,0.00084,62715.0,62714.0,0.10539657]
[1719792790946,0.00084,62715.0,62714.0,0.61293555]
[1719792791279,0.2,62751.0,62730.0,0.01992073]
[1719792791488,0.48811044,62737.0,62733.0,0.01992073]
[1719792791691,0.25831898,62746.0,62728.0,0.2]
[1719792791692,1.43247419,62736.0,62734.0,0.01992073]
[1719792791892,1.35736421,62735.0,62734.0,0.01992073]
[1719792792095,1.51970319,62735.0,62731.0,0.01992073]
[1719792792305,1.27016819,62734.0,62729.0,0.01992073]
[1719792792691,1.07616269,62733.0,62728.0,0.2]
[1719792793018,1.13771269,62732.0,62731.0,0.01992073]
[1719792793320,1.31961269,62732.0,62731.0,0.01992073]
[1719792793626,1.41961269,62732.0,62731.0,0.01992073]
[1719792794407,1.56471269,62732.0,62731.0,0.03157541]
[1719792794762,1.57871269,62732.0,62731.0,0.03257541]
[1719792795163,1.35356269,62732.0,62731.0,0.03257541]
[1719792795365,1.22596269,62732.0,62731.0,0.03257541]
[1719792795774,1.19574,62732.0,62731.0,0.01265468]
[1719792795971,1.240129,62732.0,62731.0,0.01265468]
[1719792796172,1.240129,62732.0,62731.0,0.03257541]
[1719792796809,1.240129,62732.0,62731.0,0.01265468]
[1719792797012,1.240129,62732.0,62731.0,0.03257541]
[1719792797576,1.240129,62732.0,62731.0,0.02092073]
[1719792797775,1.240129,62732.0,62731.0,0.03257541]
[1719792797978,1.058229,62732.0,62731.0,0.03257541]
[1719792798231,1.058229,62732.0,62731.0,0.01265468]
[1719792798232,1.025595,62732.0,62731.0,0.01265468]
[1719792798642,1.18793398,62732.0,62731.0,0.01265468]
[1719792799072,1.20761826,62732.0,62731.0,0.001]
[1719792799424,1.18054498,62732.0,62731.0,0.001]
[1719792799649,1.30329157,62732.0,62731.0,0.001]
[1719792799851,0.15778,62729.0,62728.0,0.001]
[1719792800053,4.98720557,62729.0,62728.0,0.001]
[1719792800317,5.21020557,62729.0,62728.0,0.001]
[1719792800652,4.99665057,62729.0,62728.0,0.001]
[1719792801036,0.1369,62725.0,62714.0,0.2]
[1719792801179,0.3291,62715.0,62714.0,0.200924]
[1719792801380,1.29712759,62715.0,62714.0,0.23267003]
[1719792801580,1.36312759,62715.0,62714.0,0.2127493]
[1719792801785,1.36312759,62715.0,62714.0,0.200924]
[1719792802941,1.36712759,62715.0,62714.0,0.200924]
[1719792803405,1.36712759,62715.0,62714.0,0.22084473]
[1719792803607,1.34151859,62715.0,62714.0,0.22084473]
[1719792803935,1.30312759,62715.0,62714.0,0.22084473]
[1719792804121,0.46186659,62715.0,62714.0,0.22084473]
[1719792804491,0.67230359,62715.0,62714.0,0.23267003]
[1719792804696,0.59370359,62715.0,62714.0,0.23267003]
[1719792805113,0.566937,62715.0,62714.0,0.23267003]
[1719792805301,0.77952034,62715.0,62714.0,0.0127493]
[1719792805505,0.77952034,62715.0,62714.0,0.000924]
[1719792805672,0.77952034,62715.0,62714.0,0.0127493]
[1719792806080,0.77552034,62715.0,62714.0,0.0127493]
[1719792806277,0.77552034,62715.0,62714.0,0.000924]
[1719792806577,0.78952034,62715.0,62714.0,0.000924]
[1719792807209,0.78752034,62715.0,62714.0,0.000924]
[1719792807640,0.80152034,62715.0,62714.0,0.000924]
[1719792807810,0.78752034,62715.0,62714.0,0.0127493]
[1719792808061,0.78752034,62715.0,62714.0,0.000924]
[1719792808263,0.80152034,62715.0,62714.0,0.000924]
[1719792808444,0.91707292,62715.0,62714.0,0.000924]
[1719792808690,0.99072072,62715.0,62714.0,0.000924]
[1719792809460,0.97672072,62715.0,62714.0,0.000924]
[1719792809812,0.99072072,62715.0,62714.0,0.000924]
[1719792810413,0.97672072,62715.0,62714.0,0.000924]
[1719792810625,0.99072072,62715.0,62714.0,0.000924]
[1719792811034,0.86674072,62715.0,62714.0,0.000924]
[1719792811354,0.89474072,62715.0,62714.0,0.000924]
[1719792811888,0.88074072,62715.0,62714.0,0.000924]
[1719792812994,0.89474072,62715.0,62714.0,0.000924]
[1719792813340,0.71284072,62715.0,62714.0,0.000924]
[1719792813541,0.89474072,62715.0,62714.0,0.000924]
[1719792814147,0.88074072,62715.0,62714.0,0.000924]
[1719792814508,0.89474072,62715.0,62714.0,0.000924]
[1719792814722,0.89558175,62715.0,62714.0,0.000924]
[1719792817959,0.79352977,62715.0,62714.0,0.000924]
[1719792818104,0.89568711,62715.0,62714.0,0.000924]
[1719792819337,0.99166711,62715.0,62714.0,0.000924]
[1719792819535,1.19166711,62715.0,62714.0,0.000924]
[1719792820772,1.17543194,62715.0,62714.0,0.000924]
[1719792820975,0.84359494,62715.0,62714.0,0.000924]
[1719792821132,4.91183937,62715.0,62714.0,0.000924]
[1719792821333,4.82390437,62715.0,62714.0,0.000924]
[1719792821742,5.02390437,62715.0,62714.0,0.000924]
[1719792822456,4.82390437,62715.0,62714.0,0.000924]
[1719792822899,4.80931037,62715.0,62714.0,0.000924]
[1719792824483,4.80952829,62715.0,62714.0,0.000924]
[1719792825878,4.70052829,62715.0,62714.0,0.000924]
[1719792826035,4.61968029,62715.0,62714.0,0.000924]
[1719792827442,4.48414729,62715.0,62714.0,0.000924]
[1719792827639,4.48424453,62715.0,62714.0,0.000924]
[1719792828922,0.24108,62711.0,62699.0,0.000924]
[1719792829135,0.0729,62701.0,62699.0,0.000924]
[1719792829330,2.44069304,62700.0,62699.0,0.000924]
[1719792829564,2.54069304,62700.0,62699.0,0.000924]
[1719792830381,2.19992604,62700.0,62699.0,0.000924]
[1719792830647,2.34734991,62700.0,62699.0,0.000924]
[1719792830848,2.34543024,62700.0,62699.0,0.000924]
[1719792831536,2.44141024,62700.0,62699.0,0.000924]
[1719792831736,2.44141024,62700.0,62688.0,0.2]
[1719792831737,2.59741024,62700.0,62688.0,0.2]
[1719792831951,0.0729,62689.0,62686.0,0.065]
[1719792832116,1.03949908,62688.0,62687.0,0.2]
[1719792832322,1.13949908,62688.0,62687.0,0.21209648]
[1719792833396,1.13949908,62688.0,62687.0,0.01209648]
[1719792833822,1.29406498,62688.0,62687.0,0.01209648]
[1719792834023,1.32233724,62688.0,62687.0,0.01209648]
[1719792834278,1.33633724,62688.0,62687.0,0.01209648]
[1719792834659,1.35033724,62688.0,62687.0,0.01209648]
[1719792834865,1.35033724,62688.0,62687.0,0.00709648]
[1719792835067,1.35033724,62688.0,62687.0,0.00416667]
[1719792835300,1.35033724,62688.0,62687.0,0.01126315]
[1719792836099,1.35033724,62688.0,62687.0,0.01218715]
[1719792836623,1.32206498,62688.0,62687.0,0.01218715]
[1719792836865,1.32206498,62688.0,62687.0,0.23210788]
[1719792836866,0.15629933,62688.0,62687.0,0.23210788]
[1719792837070,0.05629933,62688.0,62687.0,0.57380788]
[1719792837409,0.028,62688.0,62687.0,0.57380788]
[1719792837684,0.014,62688.0,62687.0,0.58380788]
[1719792837830,0.10084,62699.0,62698.0,0.01992073]
[1719792838035,0.10084,62699.0,62698.0,0.16072073]
[1719792838036,1.04806698,62699.0,62698.0,0.16072073]
[1719792838254,0.90438029,62699.0,62698.0,0.16072073]
[1719792839269,0.91838029,62699.0,62698.0,0.16072073]
[1719792839690,0.91838029,62699.0,62698.0,0.1408]
[1719792839932,0.74485429,62699.0,62698.0,0.16072073]
[1719792840301,0.13479475,62699.0,62698.0,0.16072073]
[1719792840504,0.04879101,62699.0,62698.0,0.17264491]
[1719792840837,0.06786095,62699.0,62698.0,0.17264491]
[1719792841479,0.05386095,62699.0,62698.0,0.17264491]
[1719792841679,0.03986095,62699.0,62698.0,0.17264491]
[1719792841853,0.00084,62699.0,62698.0,0.17264491]
[1719792842011,0.00984,62699.0,62698.0,0.17264491]
[1719792842214,0.00084,62699.0,62698.0,0.17264491]
[1719792842684,0.00884,62699.0,62698.0,0.57264491]
[1719792842820,0.01884,62699.0,62698.0,0.57264491]
[1719792843224,0.00884,62699.0,62698.0,0.57264491]
[1719792843426,0.00084,62699.0,62698.0,0.57264491]
[1719792843627,0.00684,62699.0,62698.0,0.57264491]
[1719792845060,0.01184,62699.0,62698.0,0.57264491]
[1719792846443,0.01184,62699.0,62698.0,0.58264491]
[1719792848792,0.00684,62699.0,62698.0,0.58264491]
[1719792849010,0.00084,62699.0,62698.0,0.58264491]
[1719792849223,0.00084,62699.0,62698.0,0.58464491]
[1719792853018,0.00084,62699.0,62698.0,0.78464491]
[1719792853497,0.00084,62699.0,62698.0,0.58464491]
[1719792854940,0.00084,62699.0,62698.0,0.78464491]
[1719792855343,0.00084,62699.0,62698.0,0.58464491]
[1719792861209,0.00084,62699.0,62698.0,0.56964491]
[1719792864074,0.00084,62699.0,62698.0,0.57964491]
[1719792865448,0.00084,62699.0,62698.0,0.56964491]
[1719792865860,0.00084,62699.0,62698.0,0.57964491]
[1719792867117,0.00084,62699.0,62698.0,0.77964491]
[1719792867315,0.00084,62699.0,62698.0,0.57964491]
[1719792872848,0.00084,62699.0,62698.0,0.77964491]
[1719792873078,0.00084,62699.0,62698.0,0.57964491]
[1719792873295,0.00084,62699.0,62698.0,0.77964491]
[1719792875168,0.00084,62699.0,62698.0,0.94198389]
[1719792876585,0.00084,62699.0,62698.0,0.74198389]
[1719792876981,0.00084,62699.0,62698.0,0.73998389]
[1719792877136,0.00184,62699.0,62698.0,0.74198389]
[1719792877736,0.00084,62699.0,62698.0,0.73998389]
[1719792877937,0.00284,62699.0,62698.0,0.74498389]
[1719792878151,0.00284,62699.0,62698.0,0.58264491]
[1719792879076,0.00284,62699.0,62698.0,0.78264491]
[1719792879273,0.00284,62699.0,62698.0,0.58264491]
[1719792879482,0.00184,62699.0,62698.0,0.57964491]
[1719792879954,0.00184,62699.0,62698.0,0.58564491]
[1719792879955,0.00284,62699.0,62698.0,0.58564491]
[1719792880155,0.00284,62699.0,62698.0,0.78564491]
[1719792880354,0.00184,62699.0,62698.0,0.77764491]
[1719792880538,0.00084,62699.0,62698.0,0.77764491]
[1719792880739,0.00284,62699.0,62698.0,0.58564491]
[1719792881001,0.00184,62699.0,62698.0,0.57964491]
[1719792881211,0.00084,62699.0,62698.0,0.57764491]
[1719792881355,0.00184,62699.0,62698.0,0.58364491]
[1719792881556,0.00284,62699.0,62698.0,0.58564491]
[1719792883168,0.00184,62699.0,62698.0,0.57964491]
[1719792883548,0.00284,62699.0,62698.0,0.58364491]
[1719792883731,0.00184,62699.0,62698.0,0.58164491]
[1719792883964,0.00284,62699.0,62698.0,0.58364491]
[1719792884345,0.00184,62699.0,62698.0,0.57964491]
[1719792884545,0.00084,62699.0,62698.0,0.77764491]
[1719792884702,0.00184,62699.0,62698.0,0.77964491]
[1719792884906,0.00284,62699.0,62698.0,0.78364491]
[1719792894838,0.00284,62699.0,62698.0,0.94598389]
[1719792896835,0.00284,62699.0,62698.0,1.42446389]
[1719792899479,0.00284,62699.0,62698.0,1.49736389]
[1719792900273,0.00284,62699.0,62698.0,1.49828789]
[1719792904340,0.00284,62699.0,62698.0,1.42538789]
[1719792904587,0.00284,62699.0,62698.0,1.49828789]
[1719792909169,0.00284,62699.0,62698.0,1.85778189]
[1719792909370,0.00284,62699.0,62698.0,3.33670729]
[1719792909567,0.1397,62734.0,62731.0,0.41992073]
[1719792909768,0.1397,62734.0,62731.0,0.89815073]
[1719792909968,0.1397,62734.0,62731.0,0.90950845]
[1719792911497,0.1397,62734.0,62731.0,0.91250845]
[1719792912020,0.1,62733.0,62731.0,0.91250845]
[1719792912990,0.1,62733.0,62731.0,0.90950845]
[1719792913597,0.00284,62732.0,62731.0,0.90950845]
[1719792915883,1.85743698,62732.0,62731.0,0.48958772]
[1719792916083,1.88043698,62732.0,62731.0,0.48958772]
[1719792916284,1.98043698,62732.0,62731.0,0.48958772]
[1719792916438,1.98043698,62732.0,62731.0,0.47823]
[1719792916849,1.97843698,62732.0,62731.0,0.49009546]
[1719792917038,1.98543698,62732.0,62731.0,0.49109546]
[1719792917512,1.99443698,62732.0,62731.0,0.49209546]
[1719792917678,1.98743698,62732.0,62731.0,0.49109546]
[1719792918016,2.25758498,62732.0,62731.0,0.49009546]
[1719792918203,2.26658498,62732.0,62731.0,0.49109546]
[1719792918720,2.23658498,62732.0,62731.0,0.49109546]
[1719792918939,2.23158498,62732.0,62731.0,0.49109546]
[1719792919375,2.24558498,62732.0,62731.0,0.49209546]
[1719792919575,2.23658498,62732.0,62731.0,0.49109546]
[1719792919703,2.22258498,62732.0,62731.0,0.49009546]
[1719792919916,2.23458498,62732.0,62731.0,0.49209546]
[1719792920094,2.24858498,62732.0,62731.0,0.49209546]
[1719792920506,2.24858498,62732.0,62731.0,0.48023]
[1719792920915,2.24858498,62732.0,62731.0,0.01386546]
[1719792921318,2.24858498,62732.0,62731.0,0.002]
[1719792921779,2.22017898,62732.0,62731.0,0.002]
[1719792922433,2.22017898,62732.0,62718.0,0.2]
[1719792922434,0.0825,62730.0,62718.0,0.2]
[1719792922606,1.97426398,62732.0,62714.0,0.48922073]
[1719792922607,0.148,62719.0,62716.0,0.28130346]
[1719792922809,0.148,62717.0,62716.0,0.28130346]
[1719792923009,0.68138,62717.0,62716.0,0.28130346]
[1719792923278,0.384652,62717.0,62716.0,0.28130346]
[1719792923400,0.248,62717.0,62716.0,0.28130346]
[1719792924037,0.248,62717.0,62716.0,0.28330346]
[1719792924437,0.1,62717.0,62716.0,0.50322419]
[1719792924984,0.1,62720.0,62719.0,0.01992073]
[1719792925916,0.1,62720.0,62719.0,0.21992073]
[1719792926106,0.1,62720.0,62719.0,0.41992073]
[1719792926310,0.103,62720.0,62719.0,0.4]
[1719792926537,0.105,62720.0,62719.0,0.4]
[1719792926824,0.105,62720.0,62719.0,0.21992073]
[1719792927032,0.102,62720.0,62719.0,0.41992073]
[1719792927232,0.01,62720.0,62719.0,0.48482073]
[1719792927405,0.018,62720.0,62719.0,0.48582073]
[1719792927543,0.018,62720.0,62719.0,0.42192073]
[1719792928586,0.01,62720.0,62719.0,0.42092073]
[1719792928900,0.003,62720.0,62719.0,0.41992073]
[1719792929503,0.1,62730.0,62726.0,0.2]
[1719792929674,0.1,62730.0,62729.0,0.08130346]
[1719792930441,0.1,62730.0,62729.0,0.10122419]
[1719792930640,0.114,62730.0,62729.0,0.10122419]
[1719792930860,0.114,62730.0,62729.0,0.10222419]
[1719792931190,0.126,62730.0,62729.0,0.10222419]
[1719792931548,0.126,62730.0,62729.0,0.08230346]
[1719792931748,0.112,62730.0,62729.0,0.08230346]
[1719792931967,0.112,62730.0,62729.0,0.10222419]
[1719792932162,0.126,62730.0,62729.0,0.11510972]
[1719792932367,0.114,62730.0,62729.0,0.11410972]
[1719792932575,0.11,62730.0,62729.0,0.11410972]
[1719792932965,0.121,62730.0,62729.0,0.11410972]
[1719792933165,0.131,62730.0,62729.0,0.11510972]
[1719792933362,0.131,62730.0,62729.0,0.09418899]
[1719792933638,0.12,62730.0,62729.0,0.09418899]
[1719792933791,0.131,62730.0,62729.0,0.09518899]
[1719792933992,0.111,62730.0,62729.0,0.09418899]
[1719792934319,0.121,62730.0,62729.0,0.09518899]
[1719792934534,0.121,62730.0,62729.0,0.11510972]
[1719792934729,0.121,62730.0,62729.0,0.09518899]
[1719792934971,0.11,62730.0,62729.0,0.09418899]
[1719792935285,0.121,62730.0,62729.0,0.01388553]
[1719792935489,1.72186098,62730.0,62729.0,0.01288553]
[1719792935734,1.74486098,62730.0,62729.0,0.01288553]
[1719792935958,1.44034298,62730.0,62729.0,0.002]
[1719792936115,1.44034298,62730.0,62729.0,0.001]
[1719792936598,1.45034298,62730.0,62729.0,0.002]
[1719792943027,1.26824298,62730.0,62729.0,0.002]
[1719792943261,1.45034298,62730.0,62729.0,0.002]
[1719792944245,1.54632298,62730.0,62729.0,0.002]
[1719792944670,1.77713153,62730.0,62729.0,0.002]
[1719792944874,1.57713153,62730.0,62729.0,0.002]
[1719792945079,1.77713153,62730.0,62729.0,0.002]
[1719792945275,0.0603,62727.0,62718.0,0.2]
[1719792945477,0.1821,62720.0,62718.0,0.2]
[1719792945843,0.99342098,62719.0,62718.0,0.2]
[1719792946625,0.99342098,62719.0,62718.0,0.201]
[1719792946824,0.92543498,62719.0,62718.0,0.202]
[1719792947047,0.92543498,62719.0,62718.0,0.201]
[1719792947583,0.92543498,62719.0,62718.0,0.001]
[1719792947584,0.50793798,62719.0,62718.0,0.001]
[1719792947731,0.50793798,62719.0,62718.0,0.201]
[1719792947938,0.50793798,62719.0,62718.0,0.21377261]
[1719792948337,0.50793798,62719.0,62718.0,0.01377261]
[1719792948541,0.51793798,62719.0,62718.0,0.21377261]
[1719792948762,0.51793798,62719.0,62718.0,0.21277261]
[1719792949245,0.52693798,62719.0,62718.0,0.21377261]
[1719792950486,1.20534498,62719.0,62718.0,0.21377261]